fUST/lending_fUST_20260503
["ID","MTS","AMOUNT","RATE_DAILY","PERIOD"]
[421521754,1777818639000,-887.25,0.00016438,2]
[421521752,1777818639000,-500.0,0.00016438,2]
[421521755,1777818639000,-665.88,0.00016438,2]
[421521753,1777818639000,-500.0,0.00016438,2]
[421521740,1777818639000,-500.0,0.00016438,2]
[421521768,1777818639000,-500.0,0.00016438,2]
[421521758,1777818639000,-535.18,0.00016438,2]
[421521772,1777818639000,-500.0,0.00016438,2]
[421521766,1777818639000,-682.79,0.00016438,2]
[421521762,1777818639000,-500.0,0.00016438,2]
[421521760,1777818639000,-500.0,0.00016438,2]
[421521759,1777818639000,-500.0,0.00016438,2]
[421521767,1777818639000,-500.0,0.00016438,2]
[421521765,1777818639000,-500.0,0.00016438,2]
[421521770,1777818639000,-500.0,0.00016438,2]
[421521764,1777818639000,-500.0,0.00016438,2]
[421521773,1777818639000,-500.0,0.00016438,2]
[421521717,1777818639000,-1618.17,0.00016438,2]
[421521763,1777818639000,-500.0,0.00016438,2]
[421521742,1777818639000,-500.0,0.00016438,2]
[421521750,1777818639000,-755.96,0.00016438,2]
[421521738,1777818639000,-500.0,0.00016438,2]
[421521739,1777818639000,-500.0,0.00016438,2]
[421521708,1777818639000,-500.0,0.00016438,2]
[421521719,1777818639000,-500.0,0.00016438,2]
[421521713,1777818639000,-500.0,0.00016438,2]
[421521718,1777818639000,-500.0,0.00016438,2]
[421521710,1777818639000,-500.0,0.00016438,2]
[421521715,1777818639000,-500.0,0.00016438,2]
[421521720,1777818639000,-517.72,0.00016438,2]
[421521723,1777818639000,-500.0,0.00016438,2]
[421521724,1777818639000,-708.36,0.00016438,2]
[421521721,1777818639000,-500.0,0.00016438,2]
[421521725,1777818639000,-512.66,0.00016438,2]
[421521729,1777818639000,-500.0,0.00016438,2]
[421521722,1777818639000,-541.8,0.00016438,2]
[421521726,1777818639000,-500.0,0.00016438,2]
[421521727,1777818639000,-500.0,0.00016438,2]
[421521741,1777818639000,-500.0,0.00016438,2]
[421521733,1777818639000,-1532.55,0.00016438,2]
[421521744,1777818639000,-500.0,0.00016438,2]
[421521743,1777818639000,-500.0,0.00016438,2]
[421521736,1777818639000,-500.0,0.00016438,2]
[421521735,1777818639000,-500.0,0.00016438,2]
[421521731,1777818639000,-500.0,0.00016438,2]
[421521734,1777818639000,-1191.23,0.00016438,2]
[421521730,1777818639000,-633.77,0.00016438,2]
[421521732,1777818639000,-500.0,0.00016438,2]
[421521714,1777818639000,-500.0,0.00016438,2]
[421521728,1777818639000,-159.14672055,0.00016438,2]
[421521809,1777818640000,-500.0,0.00016438,2]
[421521808,1777818640000,-500.0,0.00016438,2]
[421521813,1777818640000,-649.15,0.00016438,2]
[421521823,1777818640000,-500.0,0.00016438,2]
[421521820,1777818640000,-500.0,0.00016438,2]
[421521817,1777818640000,-500.0,0.00016438,2]
[421521816,1777818640000,-500.0,0.00016438,2]
[421521815,1777818640000,-500.0,0.00016438,2]
[421521818,1777818640000,-500.0,0.00016438,2]
[421521824,1777818640000,-753.4,0.00016438,2]
[421521825,1777818640000,-1146.58,0.00016438,2]
[421521810,1777818640000,-500.0,0.00016438,2]
[421521814,1777818640000,-500.0,0.00016438,2]
[421521828,1777818640000,-500.0,0.00016438,2]
[421521821,1777818640000,-500.0,0.00016438,2]
[421521819,1777818640000,-1025.18,0.00016438,2]
[421521827,1777818640000,-1185.01,0.00016438,2]
[421521837,1777818640000,-500.0,0.00016438,2]
[421521838,1777818640000,-619.2,0.00016438,2]
[421521826,1777818640000,-500.0,0.00016438,2]
[421521829,1777818640000,-561.37526394,0.00016438,2]
[421521830,1777818640000,-500.0,0.00016438,2]
[421521832,1777818640000,-500.0,0.00016438,2]
[421521831,1777818640000,-500.0,0.00016438,2]
[421521835,1777818640000,-500.0,0.00016438,2]
[421521836,1777818640000,-500.0,0.00016438,2]
[421521805,1777818640000,-500.0,0.00016438,2]
[421521833,1777818640000,-500.0,0.00016438,2]
[421521822,1777818640000,-500.0,0.00016438,2]
[421521804,1777818640000,-512.8350975,0.00016438,2]
[421521789,1777818640000,-500.0,0.00016438,2]
[421521803,1777818640000,-500.0,0.00016438,2]
[421521775,1777818640000,-500.0,0.00016438,2]
[421521785,1777818640000,-724.22,0.00016438,2]
[421521774,1777818640000,-500.0,0.00016438,2]
[421521776,1777818640000,-924.5,0.00016438,2]
[421521779,1777818640000,-500.0,0.00016438,2]
[421521777,1777818640000,-500.0,0.00016438,2]
[421521782,1777818640000,-500.0,0.00016438,2]
[421521781,1777818640000,-500.0,0.00016438,2]
[421521778,1777818640000,-500.0,0.00016438,2]
[421521780,1777818640000,-500.0,0.00016438,2]
[421521784,1777818640000,-500.0,0.00016438,2]
[421521783,1777818640000,-514.78,0.00016438,2]
[421521787,1777818640000,-500.0,0.00016438,2]
[421521788,1777818640000,-622.89,0.00016438,2]
[421521790,1777818640000,-500.0,0.00016438,2]
[421521797,1777818640000,-500.0,0.00016438,2]
[421521834,1777818640000,-500.0,0.00016438,2]
[421521791,1777818640000,-156.10359067,0.00016438,2]
[421521794,1777818640000,-500.0,0.00016438,2]
[421521796,1777818640000,-500.0,0.00016438,2]
[421521792,1777818640000,-754.21,0.00016438,2]
[421521793,1777818640000,-592.83,0.00016438,2]
[421521795,1777818640000,-500.0,0.00016438,2]
[421521801,1777818640000,-500.0,0.00016438,2]
[421521811,1777818640000,-565.76,0.00016438,2]
[421521800,1777818640000,-500.0,0.00016438,2]
[421521812,1777818640000,-500.0,0.00016438,2]
[421521802,1777818640000,-500.0,0.00016438,2]
[421521807,1777818640000,-500.0,0.00016438,2]
[421521806,1777818640000,-1966.83,0.00016438,2]
[421521841,1777818640000,-500.0,0.00016438,2]
[421521786,1777818640000,-500.0,0.00016438,2]
[421521851,1777818640000,-500.0,0.00016438,2]
[421521874,1777818640000,-500.0,0.00016438,2]
[421521875,1777818640000,-520.18282426,0.00016438,2]
[421521876,1777818640000,-874.58,0.00016438,2]
[421521880,1777818640000,-500.0,0.00016438,2]
[421521891,1777818640000,-3944.89,0.00016438,2]
[421521884,1777818640000,-795.76,0.00016438,2]
[421521887,1777818640000,-500.0,0.00016438,2]
[421521882,1777818640000,-500.0,0.00016438,2]
[421521883,1777818640000,-460.4,0.00016438,2]
[421521881,1777818640000,-1132.91,0.00016438,2]
[421521888,1777818640000,-500.0,0.00016438,2]
[421521890,1777818640000,-500.0,0.00016438,2]
[421521895,1777818640000,-638.3,0.00016438,2]
[421521893,1777818640000,-704.63,0.00016438,2]
[421521878,1777818640000,-500.0,0.00016438,2]
[421521885,1777818640000,-500.0,0.00016438,2]
[421521889,1777818640000,-500.0,0.00016438,2]
[421521897,1777818640000,-505.59,0.00016438,2]
[421521908,1777818640000,-2520.39,0.00016438,2]
[421521911,1777818640000,-1060.28,0.00016438,2]
[421521902,1777818640000,-500.0,0.00016438,2]
[421521913,1777818640000,-771.67,0.00016438,2]
[421521915,1777818640000,-500.0,0.00016438,2]
[421521900,1777818640000,-603.58,0.00016438,2]
[421521910,1777818640000,-504.30520188,0.00016438,2]
[421521899,1777818640000,-500.0,0.00016438,2]
[421521904,1777818640000,-329.70282637,0.00016438,2]
[421521906,1777818640000,-500.0,0.00016438,2]
[421521917,1777818640000,-524.92070681,0.00016438,2]
[421521839,1777818640000,-893.57,0.00016438,2]
[421521886,1777818640000,-222.22128148,0.00016438,2]
[421521879,1777818640000,-518.13435759,0.00016438,2]
[421521798,1777818640000,-500.0,0.00016438,2]
[421521872,1777818640000,-500.0,0.00016438,2]
[421521877,1777818640000,-500.0,0.00016438,2]
[421521852,1777818640000,-500.0,0.00016438,2]
[421521846,1777818640000,-500.0,0.00016438,2]
[421521848,1777818640000,-500.0,0.00016438,2]
[421521843,1777818640000,-493.81851554,0.00016438,2]
[421521842,1777818640000,-500.0,0.00016438,2]
[421521845,1777818640000,-500.0,0.00016438,2]
[421521844,1777818640000,-789.25,0.00016438,2]
[421521850,1777818640000,-2437.61,0.00016438,2]
[421521847,1777818640000,-500.0,0.00016438,2]
[421521854,1777818640000,-500.0,0.00016438,2]
[421521865,1777818640000,-3223.06,0.00016438,2]
[421521864,1777818640000,-488.37707484,0.00016438,2]
[421521853,1777818640000,-1585.4,0.00016438,2]
[421521861,1777818640000,-500.0,0.00016438,2]
[421521849,1777818640000,-301.0807985,0.00016438,2]
[421521859,1777818640000,-1260.06,0.00016438,2]
[421521867,1777818640000,-1000.0,0.00016438,2]
[421521858,1777818640000,-500.0,0.00016438,2]
[421521873,1777818640000,-500.0,0.00016438,2]
[421521870,1777818640000,-500.19891077,0.00016438,2]
[421521869,1777818640000,-500.0,0.00016438,2]
[421521868,1777818640000,-635.14,0.00016438,2]
[421521871,1777818640000,-500.0,0.00016438,2]
[421521862,1777818640000,-631.63,0.00016438,2]
[421521857,1777818640000,-500.0,0.00016438,2]
[421521855,1777818640000,-500.0,0.00016438,2]
[421521860,1777818640000,-500.0,0.00016438,2]
[421521856,1777818640000,-500.0,0.00016438,2]
[421521863,1777818640000,-500.0,0.00016438,2]
[421521866,1777818640000,-500.0,0.00016438,2]
[421521965,1777818641000,-1118.73,0.00016438,2]
[421521972,1777818641000,-500.0,0.00016438,2]
[421521983,1777818641000,-989.72,0.00016438,2]
[421521973,1777818641000,-500.0,0.00016438,2]
[421521964,1777818641000,-540.69839913,0.00016438,2]
[421521971,1777818641000,-1000.0,0.00016438,2]
[421521961,1777818641000,-500.0,0.00016438,2]
[421521963,1777818641000,-500.0,0.00016438,2]
[421521960,1777818641000,-500.0,0.00016438,2]
[421521956,1777818641000,-500.0,0.00016438,2]
[421521962,1777818641000,-500.0,0.00016438,2]
[421521966,1777818641000,-798.01,0.00016438,2]
[421521974,1777818641000,-500.0,0.00016438,2]
[421521987,1777818641000,-234.129045,0.00016438,2]
[421521985,1777818641000,-397.1437777,0.00016438,2]
[421521978,1777818641000,-500.0,0.00016438,2]
[421521977,1777818641000,-3817.31,0.00016438,2]
[421521976,1777818641000,-770.12,0.00016438,2]
[421521980,1777818641000,-583.98,0.00016438,2]
[421521981,1777818641000,-500.0,0.00016438,2]
[421521979,1777818641000,-500.0,0.00016438,2]
[421521982,1777818641000,-500.0,0.00016438,2]
[421521975,1777818641000,-500.0,0.00016438,2]
[421521986,1777818641000,-936.77,0.00016438,2]
[421521990,1777818641000,-500.0,0.00016438,2]
[421521989,1777818641000,-500.0,0.00016438,2]
[421521988,1777818641000,-348.67334954,0.00016438,2]
[421521967,1777818641000,-500.0,0.00016438,2]
[421521984,1777818641000,-500.0,0.00016438,2]
[421521970,1777818641000,-500.0,0.00016438,2]
[421521947,1777818641000,-500.0,0.00016438,2]
[421521958,1777818641000,-1877.38,0.00016438,2]
[421521919,1777818641000,-500.0,0.00016438,2]
[421521921,1777818641000,-577.94,0.00016438,2]
[421521922,1777818641000,-500.0,0.00016438,2]
[421521924,1777818641000,-500.0,0.00016438,2]
[421521926,1777818641000,-548.35505892,0.00016438,2]
[421521937,1777818641000,-500.0,0.00016438,2]
[421521936,1777818641000,-1091.29,0.00016438,2]
[421521934,1777818641000,-500.0,0.00016438,2]
[421521932,1777818641000,-500.0,0.00016438,2]
[421521930,1777818641000,-500.0,0.00016438,2]
[421521928,1777818641000,-500.0,0.00016438,2]
[421521941,1777818641000,-500.0,0.00016438,2]
[421521938,1777818641000,-1020.61,0.00016438,2]
[421521939,1777818641000,-500.0,0.00016438,2]
[421521940,1777818641000,-500.0,0.00016438,2]
[421521943,1777818641000,-500.0,0.00016438,2]
[421521953,1777818641000,-2460.61,0.00016438,2]
[421521955,1777818641000,-500.0,0.00016438,2]
[421521945,1777818641000,-500.0,0.00016438,2]
[421521949,1777818641000,-500.0,0.00016438,2]
[421521950,1777818641000,-500.0,0.00016438,2]
[421521952,1777818641000,-500.0,0.00016438,2]
[421521942,1777818641000,-1420.94,0.00016438,2]
[421521954,1777818641000,-500.0,0.00016438,2]
[421521944,1777818641000,-500.0,0.00016438,2]
[421521946,1777818641000,-2314.21,0.00016438,2]
[421521948,1777818641000,-2953.07,0.00016438,2]
[421521951,1777818641000,-500.0,0.00016438,2]
[421521969,1777818641000,-500.0,0.00016438,2]
[421521968,1777818641000,-500.0,0.00016438,2]
[421521992,1777818641000,-500.0,0.00016438,2]
[421521994,1777818641000,-500.0,0.00016438,2]
[421521991,1777818641000,-500.0,0.00016438,2]
[421522024,1777818641000,-500.0,0.00016438,2]
[421522023,1777818641000,-500.0,0.00016438,2]
[421522026,1777818641000,-500.0,0.00016438,2]
[421522030,1777818641000,-500.0,0.00016438,2]
[421522034,1777818641000,-500.0,0.00016438,2]
[421522044,1777818641000,-500.0,0.00016438,2]
[421522046,1777818641000,-1939.53,0.00016438,2]
[421522045,1777818641000,-571.53,0.00016438,2]
[421522036,1777818641000,-500.0,0.00016438,2]
[421522033,1777818641000,-500.0,0.00016438,2]
[421522035,1777818641000,-500.0,0.00016438,2]
[421521993,1777818641000,-500.0,0.00016438,2]
[421522037,1777818641000,-1506.92,0.00016438,2]
[421522020,1777818641000,-500.0,0.00016438,2]
[421522038,1777818641000,-951.29,0.00016438,2]
[421522042,1777818641000,-11974.294578,0.00016438,2]
[421522043,1777818641000,-500.0,0.00016438,2]
[421522041,1777818641000,-3209.2,0.00016438,2]
[421522048,1777818641000,-1020.99,0.00016438,2]
[421522051,1777818641000,-500.0,0.00016438,2]
[421522053,1777818641000,-3284.05,0.00016438,2]
[421522050,1777818641000,-500.0,0.00016438,2]
[421522052,1777818641000,-500.0,0.00016438,2]
[421522047,1777818641000,-500.0,0.00016438,2]
[421522056,1777818641000,-500.0,0.00016438,2]
[421522049,1777818641000,-155.92699134,0.00016438,2]
[421522054,1777818641000,-664.83,0.00016438,2]
[421522055,1777818641000,-1340.29,0.00016438,2]
[421522040,1777818641000,-500.0,0.00016438,2]
[421522027,1777818641000,-500.0,0.00016438,2]
[421522039,1777818641000,-500.0,0.00016438,2]
[421522025,1777818641000,-500.0,0.00016438,2]
[421522029,1777818641000,-500.0,0.00016438,2]
[421522001,1777818641000,-500.0,0.00016438,2]
[421522000,1777818641000,-632.98,0.00016438,2]
[421522002,1777818641000,-500.0,0.00016438,2]
[421521998,1777818641000,-500.0,0.00016438,2]
[421521997,1777818641000,-500.0,0.00016438,2]
[421521999,1777818641000,-500.0,0.00016438,2]
[421521995,1777818641000,-500.0,0.00016438,2]
[421522005,1777818641000,-8190.344327,0.00016438,2]
[421522004,1777818641000,-579.89596281,0.00016438,2]
[421522003,1777818641000,-500.0,0.00016438,2]
[421522006,1777818641000,-4371.22,0.00016438,2]
[421522009,1777818641000,-538.27,0.00016438,2]
[421522008,1777818641000,-500.0,0.00016438,2]
[421521996,1777818641000,-500.0,0.00016438,2]
[421522011,1777818641000,-500.0,0.00016438,2]
[421522013,1777818641000,-1838.88,0.00016438,2]
[421522028,1777818641000,-732.721412,0.00016438,2]
[421522032,1777818641000,-668.77,0.00016438,2]
[421522022,1777818641000,-595.701886,0.00016438,2]
[421522031,1777818641000,-6556.27,0.00016438,2]
[421522021,1777818641000,-500.0,0.00016438,2]
[421522016,1777818641000,-500.0,0.00016438,2]
[421522010,1777818641000,-510.19,0.00016438,2]
[421522019,1777818641000,-1043.53,0.00016438,2]
[421522017,1777818641000,-500.0,0.00016438,2]
[421522007,1777818641000,-500.0,0.00016438,2]
[421522015,1777818641000,-500.0,0.00016438,2]
[421522018,1777818641000,-500.0,0.00016438,2]
[421522014,1777818641000,-593.56,0.00016438,2]
[421522012,1777818641000,-500.0,0.00016438,2]
[421522096,1777818642000,-940.54,0.00016438,2]
[421522092,1777818642000,-500.0,0.00016438,2]
[421522090,1777818642000,-2889.29,0.00016438,2]
[421522100,1777818642000,-500.0,0.00016438,2]
[421522094,1777818642000,-500.0,0.00016438,2]
[421522099,1777818642000,-500.0,0.00016438,2]
[421522091,1777818642000,-866.11,0.00016438,2]
[421522089,1777818642000,-1088.76,0.00016438,2]
[421522084,1777818642000,-1446.0,0.00016438,2]
[421522082,1777818642000,-500.0,0.00016438,2]
[421522093,1777818642000,-974.58,0.00016438,2]
[421522098,1777818642000,-713.46,0.00016438,2]
[421522102,1777818642000,-1001.65,0.00016438,2]
[421522095,1777818642000,-500.0,0.00016438,2]
[421522112,1777818642000,-1542.33,0.00016438,2]
[421522113,1777818642000,-500.0,0.00016438,2]
[421522101,1777818642000,-500.0,0.00016438,2]
[421522108,1777818642000,-500.0,0.00016438,2]
[421522107,1777818642000,-500.0,0.00016438,2]
[421522106,1777818642000,-1426.82,0.00016438,2]
[421522104,1777818642000,-500.0,0.00016438,2]
[421522105,1777818642000,-500.0,0.00016438,2]
[421522110,1777818642000,-500.0,0.00016438,2]
[421522111,1777818642000,-500.0,0.00016438,2]
[421522083,1777818642000,-500.0,0.00016438,2]
[421522097,1777818642000,-500.0,0.00016438,2]
[421522103,1777818642000,-500.0,0.00016438,2]
[421522109,1777818642000,-500.0,0.00016438,2]
[421522080,1777818642000,-500.0,0.00016438,2]
[421522058,1777818642000,-500.0,0.00016438,2]
[421522060,1777818642000,-937.64,0.00016438,2]
[421522059,1777818642000,-500.0,0.00016438,2]
[421522057,1777818642000,-506.0569398,0.00016438,2]
[421522061,1777818642000,-1035.76,0.00016438,2]
[421522063,1777818642000,-1280.18,0.00016438,2]
[421522072,1777818642000,-1137.21,0.00016438,2]
[421522064,1777818642000,-500.0,0.00016438,2]
[421522062,1777818642000,-938.22,0.00016438,2]
[421522074,1777818642000,-500.0,0.00016438,2]
[421522073,1777818642000,-655.94,0.00016438,2]
[421522065,1777818642000,-6620.89,0.00016438,2]
[421522081,1777818642000,-500.0,0.00016438,2]
[421522066,1777818642000,-500.0,0.00016438,2]
[421522068,1777818642000,-1123.92,0.00016438,2]
[421522071,1777818642000,-2979.68,0.00016438,2]
[421522070,1777818642000,-500.0,0.00016438,2]
[421522069,1777818642000,-153.81108147,0.00016438,2]
[421522086,1777818642000,-500.0,0.00016438,2]
[421522087,1777818642000,-500.0,0.00016438,2]
[421522076,1777818642000,-500.0,0.00016438,2]
[421522079,1777818642000,-500.0,0.00016438,2]
[421522078,1777818642000,-500.0,0.00016438,2]
[421522075,1777818642000,-500.0,0.00016438,2]
[421522088,1777818642000,-500.0,0.00016438,2]
[421522077,1777818642000,-500.0,0.00016438,2]
[421522067,1777818642000,-500.0,0.00016438,2]
[421522114,1777818642000,-500.0,0.00016438,2]
[421522085,1777818642000,-2878.1,0.00016438,2]
[421522118,1777818642000,-1546.05,0.00016438,2]
[421522151,1777818642000,-500.0,0.00016438,2]
[421522145,1777818642000,-500.0,0.00016438,2]
[421522148,1777818642000,-500.0,0.00016438,2]
[421522146,1777818642000,-556.24771766,0.00016438,2]
[421522150,1777818642000,-500.0,0.00016438,2]
[421522153,1777818642000,-500.0,0.00016438,2]
[421522155,1777818642000,-500.0,0.00016438,2]
[421522156,1777818642000,-500.0,0.00016438,2]
[421522154,1777818642000,-500.0,0.00016438,2]
[421522159,1777818642000,-500.0,0.00016438,2]
[421522160,1777818642000,-468.12374028,0.00016438,2]
[421522161,1777818642000,-500.0,0.00016438,2]
[421522144,1777818642000,-500.0,0.00016438,2]
[421522162,1777818642000,-500.0,0.00016438,2]
[421522166,1777818642000,-500.0,0.00016438,2]
[421522167,1777818642000,-1322.26,0.00016438,2]
[421522169,1777818642000,-160.9876305,0.00016438,2]
[421522168,1777818642000,-500.0,0.00016438,2]
[421522171,1777818642000,-500.0,0.00016438,2]
[421522170,1777818642000,-630.82,0.00016438,2]
[421522172,1777818642000,-500.0,0.00016438,2]
[421522174,1777818642000,-500.0,0.00016438,2]
[421522176,1777818642000,-500.0,0.00016438,2]
[421522175,1777818642000,-500.0,0.00016438,2]
[421522173,1777818642000,-500.0,0.00016438,2]
[421522117,1777818642000,-500.0,0.00016438,2]
[421522165,1777818642000,-1035.99,0.00016438,2]
[421522152,1777818642000,-500.0,0.00016438,2]
[421522158,1777818642000,-500.0,0.00016438,2]
[421522149,1777818642000,-6414.89,0.00016438,2]
[421522147,1777818642000,-585.08,0.00016438,2]
[421522116,1777818642000,-3900.73,0.00016438,2]
[421522123,1777818642000,-540.42185482,0.00016438,2]
[421522127,1777818642000,-2758.51,0.00016438,2]
[421522121,1777818642000,-545.93637031,0.00016438,2]
[421522119,1777818642000,-402.92409283,0.00016438,2]
[421522125,1777818642000,-500.0,0.00016438,2]
[421522122,1777818642000,-500.0,0.00016438,2]
[421522124,1777818642000,-500.0,0.00016438,2]
[421522126,1777818642000,-500.0,0.00016438,2]
[421522120,1777818642000,-1000.0,0.00016438,2]
[421522129,1777818642000,-500.0,0.00016438,2]
[421522140,1777818642000,-861.19,0.00016438,2]
[421522132,1777818642000,-500.0,0.00016438,2]
[421522115,1777818642000,-500.0,0.00016438,2]
[421522131,1777818642000,-500.0,0.00016438,2]
[421522142,1777818642000,-500.0,0.00016438,2]
[421522141,1777818642000,-500.0,0.00016438,2]
[421522134,1777818642000,-2442.16,0.00016438,2]
[421522135,1777818642000,-577.02,0.00016438,2]
[421522138,1777818642000,-500.0,0.00016438,2]
[421522137,1777818642000,-500.0,0.00016438,2]
[421522143,1777818642000,-500.0,0.00016438,2]
[421522133,1777818642000,-1262.45,0.00016438,2]
[421522128,1777818642000,-547.61,0.00016438,2]
[421522139,1777818642000,-500.0,0.00016438,2]
[421522130,1777818642000,-500.0,0.00016438,2]
[421522136,1777818642000,-500.0,0.00016438,2]
[421522232,1777818643000,-2447.86,0.00016438,2]
[421522227,1777818643000,-500.0,0.00016438,2]
[421522221,1777818643000,-500.0,0.00016438,2]
[421522223,1777818643000,-500.0,0.00016438,2]
[421522222,1777818643000,-500.0,0.00016438,2]
[421522220,1777818643000,-500.0,0.00016438,2]
[421522217,1777818643000,-1992.37,0.00016438,2]
[421522219,1777818643000,-500.0,0.00016438,2]
[421522218,1777818643000,-500.0,0.00016438,2]
[421522215,1777818643000,-500.0,0.00016438,2]
[421522225,1777818643000,-4579.52,0.00016438,2]
[421522213,1777818643000,-500.0,0.00016438,2]
[421522224,1777818643000,-500.0,0.00016438,2]
[421522229,1777818643000,-500.0,0.00016438,2]
[421522245,1777818643000,-500.0,0.00016438,2]
[421522228,1777818643000,-2019.3,0.00016438,2]
[421522238,1777818643000,-972.37,0.00016438,2]
[421522226,1777818643000,-500.0,0.00016438,2]
[421522230,1777818643000,-500.0,0.00016438,2]
[421522231,1777818643000,-500.0,0.00016438,2]
[421522234,1777818643000,-5089.57,0.00016438,2]
[421522236,1777818643000,-500.0,0.00016438,2]
[421522233,1777818643000,-962.12,0.00016438,2]
[421522235,1777818643000,-500.0,0.00016438,2]
[421522239,1777818643000,-2047.82,0.00016438,2]
[421522241,1777818643000,-500.0,0.00016438,2]
[421522244,1777818643000,-500.0,0.00016438,2]
[421522246,1777818643000,-500.0,0.00016438,2]
[421522216,1777818643000,-514.01,0.00016438,2]
[421522237,1777818643000,-500.0,0.00016438,2]
[421522214,1777818643000,-500.0,0.00016438,2]
[421522181,1777818643000,-500.0,0.00016438,2]
[421522205,1777818643000,-500.0,0.00016438,2]
[421522183,1777818643000,-739.13,0.00016438,2]
[421522182,1777818643000,-500.0,0.00016438,2]
[421522243,1777818643000,-3446.68,0.00016438,2]
[421522180,1777818643000,-500.0,0.00016438,2]
[421522178,1777818643000,-500.0,0.00016438,2]
[421522185,1777818643000,-500.0,0.00016438,2]
[421522188,1777818643000,-500.0,0.00016438,2]
[421522187,1777818643000,-1644.45,0.00016438,2]
[421522184,1777818643000,-500.0,0.00016438,2]
[421522186,1777818643000,-1194.55,0.00016438,2]
[421522196,1777818643000,-603.18,0.00016438,2]
[421522191,1777818643000,-500.0,0.00016438,2]
[421522190,1777818643000,-668.58,0.00016438,2]
[421522195,1777818643000,-500.0,0.00016438,2]
[421522189,1777818643000,-926.46,0.00016438,2]
[421522192,1777818643000,-500.0,0.00016438,2]
[421522193,1777818643000,-3099.24,0.00016438,2]
[421522194,1777818643000,-500.0,0.00016438,2]
[421522209,1777818643000,-890.88,0.00016438,2]
[421522207,1777818643000,-500.0,0.00016438,2]
[421522208,1777818643000,-500.0,0.00016438,2]
[421522201,1777818643000,-500.0,0.00016438,2]
[421522203,1777818643000,-500.0,0.00016438,2]
[421522212,1777818643000,-500.0,0.00016438,2]
[421522198,1777818643000,-18256.22,0.00016438,2]
[421522199,1777818643000,-6485.23,0.00016438,2]
[421522210,1777818643000,-500.0,0.00016438,2]
[421522211,1777818643000,-735.58,0.00016438,2]
[421522197,1777818643000,-500.0,0.00016438,2]
[421522204,1777818643000,-631.56,0.00016438,2]
[421522248,1777818643000,-500.0,0.00016438,2]
[421522268,1777818643000,-500.0,0.00016438,2]
[421522250,1777818643000,-1298.32,0.00016438,2]
[421522284,1777818643000,-500.0,0.00016438,2]
[421522294,1777818643000,-2214.47,0.00016438,2]
[421522285,1777818643000,-500.0,0.00016438,2]
[421522286,1777818643000,-16508.02,0.00016438,2]
[421522287,1777818643000,-559.01,0.00016438,2]
[421522291,1777818643000,-500.0,0.00016438,2]
[421522289,1777818643000,-722.9,0.00016438,2]
[421522288,1777818643000,-500.0,0.00016438,2]
[421522290,1777818643000,-500.0,0.00016438,2]